lending/lending_fUSD_20260104
["ID","MTS","AMOUNT","RATE_DAILY","PERIOD"]
[400449203,1767567032082,-151.0,0.00016465,2]
[400449204,1767567032092,-200.0,0.00016714,2]
[400449205,1767567032101,-832.0,0.0001672,2]
[400449206,1767567032110,-1200.0,0.00016742,2]
[400449207,1767567032123,-3091.7,0.00016743,2]
[400449208,1767567032132,-200.0,0.00016791,2]
[400449209,1767567032141,-150.0,0.00016822,2]
[400449210,1767567032151,-300.0,0.00016832,2]
[400449211,1767567032160,-300.0,0.00016832,2]
[400449212,1767567032169,-500.0,0.00016833,2]
[400449213,1767567032180,-1305.88,0.00016848,2]
[400449214,1767567032191,-151.98946359,0.00017024,2]
[400449215,1767567032200,-500.0,0.00017315,2]
[400449216,1767567032209,-360.0,0.00017475,2]
[400449217,1767567032219,-3091.7,0.0001758,2]
[400449218,1767567032229,-360.0,0.00017583,2]
[400449219,1767567032239,-360.0,0.00017606,2]
[400449220,1767567032248,-360.0,0.00017633,2]
[400449221,1767567032260,-180.87375268,0.0001764,2]
[400449222,1767567032271,-500.0,0.00017644,2]
[400449223,1767567032280,-273.49,0.00017681,2]
[400449224,1767567032289,-360.0,0.00017726,2]
[400449225,1767567032299,-1328.0,0.00017732,2]
[400449227,1767567032308,-3457.0,0.00017732,2]
[400449229,1767567032318,-613.0,0.00017732,2]
[400449231,1767567032331,-1404.0,0.00017732,2]
[400449232,1767567032341,-6547.0,0.00017732,2]
[400449234,1767567032350,-565.0,0.00017732,2]
[400449235,1767567032360,-360.0,0.00017774,2]
[400449236,1767567032369,-1755.148,0.00017794,2]
[400449237,1767567032378,-166.80682314,0.000178,2]
[400449239,1767567032387,-1000.0,0.000178,2]
[400449240,1767567032397,-151.63388952,0.000178,2]
[400449241,1767567032406,-455.90507987,0.000178,2]
[400449242,1767567032416,-158.66877961,0.000178,2]
[400449243,1767567032426,-360.0,0.0001781,2]
[400449244,1767567032435,-455.90507986,0.00017811,2]
[400449245,1767567032446,-562.70806,0.0001782,2]
[400449246,1767567032455,-562.70807,0.0001782,2]
[400449247,1767567032465,-455.90507986,0.00017822,2]
[400449248,1767567032474,-166.80682313,0.00017825,2]
[400449249,1767567032483,-562.70806,0.0001783,2]
[400449250,1767567032492,-455.90507986,0.00017833,2]
[400449251,1767567032503,-455.90507986,0.00017844,2]
[400449252,1767567032514,-166.80682313,0.0001785,2]
[400449253,1767567032526,-455.90507986,0.00017856,2]
[400449254,1767567032536,-562.70807,0.0001786,2]
[400449255,1767567032545,-455.90507986,0.00017867,2]
[400449256,1767567032554,-166.80682313,0.00017875,2]
[400449257,1767567032564,-455.90507986,0.00017878,2]
[400449258,1767567032573,-562.70807,0.0001788,2]
[400449259,1767567032582,-440.61042611,0.00017899,2]
[400449260,1767567032591,-595.91992285,0.00017899,2]
[400449261,1767567032601,-303.59936645,0.00017899,2]
[400449262,1767567032612,-9694.1365,0.000179,2]
[400449263,1767567032621,-5831.7655,0.000179,2]
[400449264,1767567032631,-166.80682313,0.000179,2]
[400449265,1767567032642,-256.79524156,0.000179,2]
[400449266,1767567032661,-15950.699198,0.000179,2]
[400449267,1767567032670,-2114.0,0.000179,2]
[400449268,1767567032679,-562.70806,0.0001791,2]
[400449269,1767567032690,-234.72201312,0.00017973,2]
[400449270,1767567032699,-44073.61680932,0.00017976,2]
[400449271,1767567032711,-879.45743612,0.00017976,2]
[400449272,1767567032722,-10957.99854066,0.00017976,2]
[400449273,1767567032739,-2127.37987507,0.00017976,2]
[400449274,1767567032751,-2286.90336051,0.00017976,2]
[400449275,1767567032768,-664.63807819,0.00017976,2]
[400449276,1767567032779,-3592.19999998,0.00017976,2]
[400449278,1767567038093,-2434.0,0.00017732,2]
[400449279,1767567038102,-455.90507986,0.00017889,2]
[400449280,1767567038112,-455.90507986,0.000179,2]
[400449281,1767567038122,-2730.13094197,0.00017976,2]
[400449282,1767567038133,-1295.00000005,0.00017976,2]
[400449283,1767567038151,-3379.8,0.00017976,2]
[400449284,1767567038213,-2282.53579154,0.00017976,2]
[400449285,1767567038226,-3496.62616797,0.00017976,2]
[400449292,1767567040200,-3761.56668137,0.00017976,2]
[400449293,1767567040256,-5863.50612559,0.00017976,2]
[400449294,1767567040267,-176581.82398826,0.00017976,2]
[400449295,1767567040276,-1751.9661781,0.00017976,2]
[400449296,1767567040286,-5255.8985342,0.00017976,2]
[400449297,1767567040295,-1168.363125,0.00017976,2]
[400449298,1767567040305,-250.0,0.00017984,2]
[400449299,1767567040314,-214.02545008,0.00017999,2]
[400449300,1767567040323,-1092183.78821021,0.00018,2]
[400449301,1767567040332,-151.0,0.00018,2]
[400449302,1767567040342,-151.0,0.00018,2]
[400449303,1767567040351,-151.0,0.00018,2]
[400449304,1767567040360,-151.0,0.00018,2]
[400449305,1767567040369,-158.483087,0.00018,2]
[400449306,1767567040378,-376048.8263177,0.00018,2]
[400449307,1767567040389,-15918.08659907,0.00018,2]
[400449308,1767567040400,-2243.95,0.00018,2]
[400449317,1767567044138,-358.46845774,0.00018,2]
[400449318,1767567045191,-2048.12933341,0.00018,2]
[400449319,1767567045202,-1001.9863755,0.00018,2]
[400449322,1767567046194,-151.0,0.0001727,2]
[400449323,1767567046204,-151.0,0.0001727,2]
[400449324,1767567046215,-3732.89379691,0.00018,2]
[400449394,1767567520012,1431.98,0.00024916,120]
[400449421,1767567724412,413.0381496,0.00032876,120]
[400449560,1767568158181,-829.590046,0.00015843,2]
[400449561,1767568158201,-1086.54964261,0.00015923,2]
[400449562,1767568158221,-166.66,0.00016023,2]
[400449594,1767568232640,-431.18,0.00016218,2]
[400449595,1767568232651,-286.0,0.00016218,2]
[400449596,1767568232661,-3240.0,0.00016224,2]
[400449597,1767568232671,-292.15,0.00016229,2]
[400449598,1767568232682,-151.0,0.00016298,2]
[400449599,1767568232692,-151.0,0.00016298,2]
[400449600,1767568232701,-151.0,0.00016299,2]
[400449601,1767568232711,-151.0,0.00016299,2]
[400449602,1767568232721,-151.0,0.00016299,2]
[400449603,1767568232731,-151.0,0.00016299,2]
[400449604,1767568232740,-151.0,0.00016299,2]
[400449605,1767568232750,-151.0,0.00016299,2]
[400449606,1767568232759,-166.66,0.0001636,2]
[400449607,1767568232770,-1200.0,0.00016404,2]
[400449608,1767568232780,-300.0,0.00016405,2]
[400449609,1767568232789,-300.0,0.00016405,2]
[400449610,1767568232798,-1000.0,0.00016407,2]
[400449611,1767568232809,-559.07,0.00016407,2]
[400449612,1767568232820,-870.0,0.00016438,2]
[400449613,1767568232830,-999.0,0.00016588,3]
[400449614,1767568232840,-1431.98,0.0001661,2]
[400449615,1767568232850,-231.59198559,0.00016691,2]
[400449616,1767568232862,-272.84287718,0.00016691,2]
[400449617,1767568232873,-807.41513723,0.00016691,2]
[400449618,1767568232883,-166.66,0.00016697,2]
[400449619,1767568232892,-165.2,0.00016712,2]
[400449620,1767568232902,-166.66,0.00016721,2]
[400449621,1767568232911,-151.96663608,0.00016969,2]
[400449622,1767568232920,-500.0,0.00016986,2]
[400449623,1767568232929,-250.0,0.00017,2]
[400449624,1767568232939,-166.66,0.00017035,2]
[400449625,1767568232948,-292.15,0.00017131,2]
[400449626,1767568232957,-218.79,0.00017132,2]
[400449627,1767568232967,-200.0,0.00017174,2]
[400449628,1767568232977,-166.66,0.00017273,2]
[400449629,1767568232986,-166.66,0.00017372,2]
[400449630,1767568232996,-2788.0,0.00017525,2]
[400449631,1767568233006,-420.03790814,0.00017557,2]
[400449632,1767568233017,-500.0,0.00017589,2]
[400449633,1767568233026,-420.0379081,0.00017595,2]
[400449634,1767568233036,-3270.06476509,0.00017617,2]
[400449635,1767568233045,-500.0,0.00017627,2]
[400449636,1767568233054,-504.1642341,0.00017627,2]
[400449637,1767568233063,-500.0,0.00017631,2]
[400449638,1767568233073,-500.0,0.00017631,2]
[400449639,1767568233082,-420.0379081,0.00017633,2]
[400449640,1767568233091,-3270.06476509,0.00017657,2]
[400449641,1767568233101,-420.0379081,0.00017671,2]
[400449642,1767568233110,-3270.06476509,0.00017698,2]
[400449643,1767568233120,-166.66,0.00017709,2]
[400449644,1767568233129,-420.0379081,0.00017709,2]
[400449645,1767568233139,-150.0,0.00017732,2]
[400449646,1767568233148,-150.0,0.00017732,2]
[400449647,1767568233157,-150.0,0.00017732,2]
[400449648,1767568233175,-1401.0,0.00017732,2]
[400449649,1767568233186,-613.0,0.00017732,2]
[400449650,1767568233195,-913.0,0.00017732,2]
[400449651,1767568233205,-3270.06476509,0.00017738,2]
[400449652,1767568233215,-420.0379081,0.00017748,2]
[400449653,1767568233226,-3270.06476509,0.00017779,2]
[400449654,1767568233236,-420.0379081,0.00017786,2]
[400449655,1767568233246,-2843.86316486,0.00017802,2]
[400449656,1767568233259,-3703.13683514,0.00017802,2]
[400449657,1767568233269,-2001.35,0.00017802,2]
[400449658,1767568233279,-2484.45648393,0.00017806,2]
[400449659,1767568233290,-303.54351607,0.00017806,2]
[400449660,1767568233300,-2571.55964445,0.00017819,2]
[400449661,1767568233312,-698.50512064,0.00017819,2]
[400449662,1767568233322,-201.80612,0.0001782,2]
[400449663,1767568233331,-201.80613,0.0001782,2]
[400449664,1767568233342,-145.28225084,0.00017824,2]
[400449665,1767568233353,-274.75565726,0.00017824,2]
[400449666,1767568233363,-166.66,0.00017825,2]
[400449667,1767568233373,-201.80612,0.0001783,2]
[400449668,1767568233382,-250.0,0.0001784,2]
[400449669,1767568233392,-183.64800879,0.00017859,2]
[400449670,1767568233402,-598.26627644,0.00017859,2]
[400449671,1767568233412,-228.09852129,0.00017859,2]
[400449672,1767568233422,-3270.06476509,0.0001786,2]
[400449673,1767568233431,-201.80613,0.0001786,2]
[400449674,1767568233441,-107.98357829,0.00017862,2]
[400449675,1767568233462,-312.05432981,0.00017862,2]
[400449676,1767568233471,-201.80613,0.0001788,2]
[400449677,1767568233480,-158.66877959,0.00017894,2]
[400449678,1767568233490,-715.46093849,0.000179,2]
[400449679,1767568233499,-298.80300187,0.000179,2]
[400449680,1767568238330,-151.0,0.00017284,2]
[400449681,1767568238339,-151.0,0.00017284,2]
[400449682,1767568238348,-448.45496771,0.00017626,2]
[400449683,1767568238357,-500.0,0.00017626,2]
[400449684,1767568238367,-22.75106639,0.00017626,2]
[400449685,1767568238390,-477.24893361,0.00017626,2]
[400449686,1767568238399,-500.0,0.00017626,2]
[400449687,1767568238409,-500.0,0.00017626,2]
[400449688,1767568238419,-500.0,0.00017626,2]
[400449689,1767568238428,-500.0,0.00017626,2]
[400449690,1767568238438,-500.0,0.00017626,2]
[400449691,1767568238447,-500.0,0.00017626,2]
[400449692,1767568238456,-500.0,0.00017626,2]
[400449693,1767568238466,-500.0,0.00017626,2]
[400449694,1767568238475,-500.0,0.00017626,2]
[400449695,1767568238486,-577.43692386,0.00017626,2]
[400449696,1767568238495,-500.0,0.00017626,2]
[400449697,1767568238505,-500.0,0.00017626,2]
[400449698,1767568238514,-500.0,0.00017626,2]
[400449699,1767568238524,-500.0,0.00017626,2]
[400449700,1767568238533,-500.0,0.00017626,2]
[400449701,1767568238543,-500.0,0.00017626,2]
[400449702,1767568238552,-500.0,0.00017626,2]
[400449703,1767568238561,-500.0,0.00017626,2]
[400449704,1767568238571,-422.67075629,0.00017626,2]
[400449705,1767568238580,-500.0,0.00017626,2]
[400449706,1767568238590,-500.0,0.00017626,2]
[400449707,1767568238600,-500.0,0.00017626,2]
[400449708,1767568238613,-500.0,0.00017626,2]
[400449709,1767568238622,-500.0,0.00017626,2]
[400449710,1767568238631,-500.0,0.00017626,2]
[400449711,1767568238641,-500.0,0.00017626,2]
[400449712,1767568238651,-500.0,0.00017626,2]
[400449713,1767568238668,-500.0,0.00017626,2]
[400449714,1767568238681,-500.0,0.00017626,2]
[400449715,1767568238691,-500.0,0.00017626,2]
[400449716,1767568238701,-500.0,0.00017626,2]
[400449717,1767568238711,-500.0,0.00017626,2]
[400449718,1767568238721,-500.0,0.00017626,2]
[400449719,1767568238731,-500.0,0.00017626,2]
[400449720,1767568238741,-500.0,0.00017626,2]
[400449721,1767568238751,-500.0,0.00017626,2]
[400449722,1767568238761,-500.0,0.00017626,2]
[400449723,1767568238772,-500.0,0.00017626,2]
[400449724,1767568238782,-565.0,0.00017802,2]
[400449725,1767568238791,-2971.26176322,0.000179,2]
[400449726,1767568238801,-420.0379081,0.000179,2]
[400449727,1767568238812,-158.66877959,0.000179,2]
[400449728,1767568238822,-1490.0,0.000179,2]
[400449729,1767568238832,-201.80612,0.0001791,2]
[400449730,1767568238842,-420.0,0.00017929,2]
[400449731,1767568238851,-420.0,0.00017929,2]
[400449732,1767568238863,-44145.455997,0.00017991,2]
[400449733,1767568238872,-292.0907813,0.00017994,2]
[400449734,1767568238883,-1751.9661781,0.00017994,2]
[400449735,1767568238892,-87740.70536569,0.00017994,2]
[400449736,1767568238906,-264.37556681,0.00017994,2]
[400449737,1767568240379,-1059.80161734,0.00017994,2]
[400449738,1767568240441,-61771.80973158,0.00017994,2]
[400449739,1767568240453,-7596.3474717,0.00017994,2]
[400449740,1767568240464,-39546.84809428,0.00017994,2]
[400449741,1767568240474,-5255.8985342,0.00017994,2]
[400449742,1767568240483,-876.2723438,0.00017994,2]
[400449743,1767568240493,-214.02545008,0.00017999,2]
[400449744,1767568240503,-836133.76856961,0.00018,2]
[400449745,1767568240512,-203903.53360926,0.00018,2]
[400449746,1767568240522,-609433.6917064,0.00018,2]
[400449747,1767568240669,-949.309992,0.00018,2]
[400449785,1767568244125,-1200.0,0.00017802,2]
[400449786,1767568244135,-189.59404885,0.00018,2]
[400449787,1767568246643,-159581.2999702,0.00018,2]
[400449789,1767568264072,500.0,0.00015373,2]
[400449790,1767568264122,1000.0,0.00015921,2]
[400449791,1767568264693,504.50134142,0.00015373,2]
[400449792,1767568267873,516.76468605,0.00015373,2]
[400449795,1767568268503,500.0,0.00015973,2]
[400449799,1767568270675,500.0,0.00015373,2]
[400449800,1767568270787,813.93419392,0.00015921,2]
[400449801,1767568270811,186.06580608,0.00015921,2]
[400449802,1767568273668,500.0,0.00015973,2]
[400449803,1767568274378,500.0,0.00015973,2]
[400449804,1767568274650,500.0,0.00015973,2]
[400449805,1767568274845,500.0,0.00015973,2]
[400449818,1767568323239,500.0,0.00015973,2]
[400449819,1767568323265,500.0,0.00015373,2]
[400449820,1767568323311,1000.0,0.00015921,2]
[400449821,1767568324601,500.0,0.00015973,2]
[400449822,1767568326030,1009.74714228,0.00015921,2]
[400449823,1767568326087,500.0,0.00015373,2]
[400449824,1767568328081,500.0,0.00015973,2]
[400449825,1767568332259,500.0,0.00015973,2]
[400449826,1767568334521,500.0,0.00015973,2]
[400449827,1767568335017,500.0,0.00015373,2]
[400449828,1767568335066,1000.0,0.00015921,2]
[400449829,1767568335255,500.0,0.00015973,2]
[400449832,1767568336488,500.0,0.00015973,2]
[400449834,1767568336939,500.0,0.00015973,2]
[400449835,1767568337049,500.0,0.00015373,2]
[400449836,1767568337097,1000.0,0.00015921,2]
[400449838,1767568337482,500.0,0.00015973,2]
[400449867,1767568561657,500.0,0.00043542,120]
[400449870,1767568626138,151.0,0.00043542,65]
[400449871,1767568626440,151.0,0.00043542,65]
[400449872,1767568642978,151.0,0.00043542,65]
[400449873,1767568643355,151.0,0.00043542,65]
[400449874,1767568643647,151.0,0.00043542,65]
[400449875,1767568643967,151.0,0.00043542,65]
[400449876,1767568644270,151.0,0.00043542,65]
[400449877,1767568644702,151.0,0.00043542,65]
[400449878,1767568644887,151.0,0.00043542,65]
[400449879,1767568645189,178.210028,0.00043542,65]
[400449880,1767568688083,151.0,0.00043542,65]
[400449881,1767568688403,151.0,0.00043542,65]
[400449882,1767568688766,151.0,0.00043542,65]
[400449883,1767568689189,151.0,0.00043542,65]
[400449884,1767568689467,151.0,0.00043542,65]
[400449885,1767568689920,151.0,0.00043542,65]
[400449886,1767568690059,167.436788,0.00043542,65]
[400449899,1767568797923,824.37,0.00013699,2]
[400449928,1767568855872,250.0,0.00043562,120]
[400449948,1767568900904,151.0,0.00043562,65]
[400449949,1767568901188,151.0,0.00043562,65]
[400449950,1767568901484,151.0,0.00043562,65]
[400449951,1767568901771,151.0,0.00043562,65]
[400449952,1767568902183,151.0,0.00043562,65]
[400449954,1767568902354,245.12557,0.00043562,65]
[400450000,1767569242128,-500.0,0.00015273,2]
[400450001,1767569242150,-93.0780361,0.00015371,2]
[400450010,1767569315445,447.6,7.921e-05,2]
[400450011,1767569315642,447.6,8.338e-05,2]
[400450012,1767569315844,447.6,8.755e-05,2]
[400450013,1767569316249,447.6,9.172e-05,2]
[400450014,1767569316462,447.6,9.589e-05,2]
[400450015,1767569316677,447.6,0.00010006,2]
[400450016,1767569316876,447.6,0.00010423,2]
[400450017,1767569317090,447.6,0.0001084,2]
[400450018,1767569317530,447.6,0.00011257,2]
[400450019,1767569317759,447.6,0.00011673,2]
[400450020,1767569317964,447.6,0.0001209,2]
[400450021,1767569318587,447.6,0.00012507,2]
[400450022,1767569318632,447.6,0.00012924,2]
[400450023,1767569318817,447.6,0.00013341,2]
[400450024,1767569319037,447.6,0.00013758,2]
[400450025,1767569319248,447.6,0.00014175,2]
[400450026,1767569319462,447.6,0.00014592,2]
[400450029,1767569321501,-290.58560355,0.00015009,2]
[400450033,1767569372087,-157.01439645,0.00015009,2]
[400450034,1767569372108,-1106.9219639,0.00015371,2]
[400450035,1767569372129,-300.0,0.00015372,2]
[400450036,1767569372150,-300.0,0.00015372,2]
[400450037,1767569372169,-500.0,0.00015373,2]
[400450038,1767569372188,-500.0,0.00015373,2]
[400450039,1767569372208,-500.0,0.00015373,2]
[400450040,1767569372227,-176.13684725,0.00015373,2]
[400450041,1767569372247,-414.41472241,0.00015373,2]
[400450042,1767569372266,-500.0,0.00015373,2]
[400450043,1767569372286,-500.0,0.00015373,2]
[400450044,1767569372306,-500.0,0.00015373,2]
[400450045,1767569372326,-500.0,0.00015373,2]
[400450046,1767569372346,-500.0,0.00015373,2]
[400450047,1767569372370,-500.0,0.00015373,2]
[400450048,1767569372390,-500.0,0.00015373,2]
[400450049,1767569372414,-447.6,0.00015426,2]
[400450050,1767569372433,-447.6,0.00015843,2]
[400450051,1767569372461,-299583.18766999,0.00015873,2]
[400450095,1767569431381,-500.0,0.00015373,2]
[400450096,1767569431391,-2425.51092998,0.00015821,2]
[400450097,1767569431403,-562.72178916,0.00015821,2]
[400450098,1767569431414,-562.44726085,0.00015821,2]
[400450099,1767569431424,-300.0,0.00015872,2]
[400450100,1767569431434,-300.0,0.00015872,2]
[400450101,1767569431443,-86.73753757,0.00015872,2]
[400450102,1767569431454,-1113.26246243,0.00015872,2]
[400450103,1767569431463,-300.0,0.00015872,2]
[400450104,1767569431472,-700416.81233001,0.00015873,2]
[400450106,1767569431481,-1000.0,0.00015921,2]
[400450107,1767569431490,-1000.0,0.00015921,2]
[400450108,1767569431504,-1000.0,0.00015921,2]
[400450109,1767569431513,-508.40118338,0.00015921,2]
[400450110,1767569431522,-1000.0,0.00015921,2]
[400450111,1767569431531,-548.21180041,0.00015921,2]
[400450112,1767569431542,-508.49267712,0.00015921,2]
[400450113,1767569431551,-1000.0,0.00015921,2]
[400450114,1767569431560,-1000.0,0.00015921,2]
[400450115,1767569431570,-1000.0,0.00015921,2]
[400450116,1767569431580,-483.34,0.00015973,2]
[400450117,1767569431590,-500.0,0.00015973,2]
[400450118,1767569431600,-500.0,0.00015973,2]
[400450119,1767569431610,-500.0,0.00015973,2]
[400450120,1767569431619,-500.0,0.00015973,2]
[400450121,1767569431630,-500.0,0.00015973,2]
[400450122,1767569431639,-500.0,0.00015973,2]
[400450123,1767569431649,-500.0,0.00015973,2]
[400450124,1767569431659,-500.0,0.00015973,2]
[400450125,1767569431668,-410.09376495,0.00015973,2]
[400450126,1767569431678,-500.0,0.00015973,2]
[400450127,1767569431688,-278.12207661,0.00015973,2]
[400450128,1767569431697,-500.0,0.00015973,2]
[400450129,1767569431707,-500.0,0.00015973,2]
[400450130,1767569431716,-602.13152895,0.00015973,2]
[400450131,1767569431726,-500.0,0.00015973,2]
[400450133,1767569431735,-500.0,0.00015973,2]
[400450135,1767569431744,-500.0,0.00015973,2]
[400450136,1767569431753,-614.98987276,0.00015973,2]
[400450137,1767569431763,-500.0,0.00015973,2]
[400450138,1767569431772,-500.0,0.00015973,2]
[400450139,1767569431781,-500.0,0.00015973,2]
[400450140,1767569431790,-500.0,0.00015973,2]
[400450141,1767569431800,-500.0,0.00015973,2]
[400450142,1767569431809,-500.0,0.00015973,2]
[400450143,1767569431819,-504.15287771,0.00015973,2]
[400450144,1767569431828,-500.0,0.00015973,2]
[400450145,1767569431841,-500.0,0.00015973,2]
[400450146,1767569431850,-500.0,0.00015973,2]
[400450147,1767569431860,-500.0,0.00015973,2]
[400450148,1767569431869,-500.0,0.00015973,2]
[400450149,1767569431879,-500.0,0.00015973,2]
[400450150,1767569431889,-500.0,0.00015973,2]
[400450151,1767569431898,-500.0,0.00015973,2]
[400450152,1767569431908,-500.0,0.00015973,2]
[400450153,1767569431917,-500.0,0.00015973,2]
[400450154,1767569431927,-500.0,0.00015973,2]
[400450155,1767569431946,-200.68,0.00015973,2]
[400450156,1767569431957,-3550.67997991,0.00016052,2]
[400450157,1767569431967,-200.68,0.00016247,2]
[400450158,1767569431977,-3550.67997991,0.00016283,2]
[400450159,1767569431987,-832.0,0.000164,2]
[400450160,1767569431996,-500.0,0.00016437,2]
[400450161,1767569432006,-500.0,0.00016437,2]
[400450162,1767569432015,-500.0,0.00016437,2]
[400450163,1767569432025,-500.0,0.00016437,2]
[400450164,1767569432034,-321.40403217,0.00016437,2]
[400450165,1767569432044,-500.0,0.00016437,2]
[400450166,1767569432056,-500.0,0.00016437,2]
[400450167,1767569432066,-500.0,0.00016437,2]
[400450168,1767569432075,-500.0,0.00016437,2]
[400450169,1767569432085,-500.0,0.00016437,2]
[400450170,1767569432100,-500.0,0.00016437,2]
[400450172,1767569432109,-500.0,0.00016437,2]
[400450173,1767569432119,-500.0,0.00016437,2]
[400450174,1767569432131,-275.80440602,0.00016437,2]
[400450175,1767569432142,-500.0,0.00016438,2]
[400450176,1767569432151,-500.0,0.00016438,2]
[400450177,1767569432161,-500.0,0.00016438,2]
[400450178,1767569432171,-500.0,0.00016438,2]
[400450179,1767569432180,-500.0,0.00016438,2]
[400450180,1767569432189,-500.0,0.00016438,2]
[400450181,1767569432199,-500.0,0.00016438,2]
[400450182,1767569432209,-500.0,0.00016438,2]
[400450183,1767569432220,-500.0,0.00016438,2]
[400450184,1767569432230,-500.0,0.00016438,2]
[400450185,1767569432240,-500.0,0.00016438,2]
[400450186,1767569432249,-500.0,0.00016438,2]
[400450187,1767569432259,-500.0,0.00016438,2]
[400450188,1767569432268,-500.0,0.00016438,2]
[400450189,1767569432278,-500.0,0.00016438,2]
[400450190,1767569432287,-500.0,0.00016438,2]
[400450191,1767569432297,-500.0,0.00016438,2]
[400450192,1767569432306,-500.0,0.00016438,2]
[400450193,1767569432316,-500.0,0.00016438,2]
[400450194,1767569432326,-500.0,0.00016438,2]
[400450195,1767569432336,-500.0,0.00016438,2]
[400450196,1767569432347,-500.0,0.00016438,2]
[400450197,1767569432358,-500.0,0.00016438,2]
[400450198,1767569432368,-500.0,0.00016438,2]
[400450199,1767569432378,-500.0,0.00016438,2]
[400450200,1767569432388,-500.0,0.00016438,2]
[400450201,1767569432398,-500.0,0.00016438,2]
[400450202,1767569432407,-500.0,0.00016438,2]
[400450203,1767569432416,-500.0,0.00016438,2]
[400450204,1767569432427,-500.0,0.00016438,2]
[400450205,1767569432437,-500.0,0.00016438,2]
[400450206,1767569432446,-312.96924781,0.00016438,2]
[400450207,1767569432455,-500.0,0.00016438,2]
[400450208,1767569432464,-500.0,0.00016438,2]
[400450209,1767569432474,-500.0,0.00016438,2]
[400450210,1767569432483,-500.0,0.00016438,2]
[400450211,1767569432492,-500.0,0.00016438,2]
[400450212,1767569432501,-500.0,0.00016438,2]
[400450213,1767569432511,-500.0,0.00016438,2]
[400450214,1767569432520,-500.0,0.00016438,2]
[400450215,1767569432530,-500.0,0.00016438,2]
[400450216,1767569432539,-231.29692478,0.00016438,2]
[400450217,1767569432548,-500.0,0.00016438,2]
[400450218,1767569432558,-500.0,0.00016438,2]
[400450219,1767569432568,-500.0,0.00016438,2]
[400450220,1767569432577,-500.0,0.00016438,2]
[400450221,1767569432587,-500.0,0.00016438,2]
[400450222,1767569432597,-500.0,0.00016438,2]
[400450223,1767569432606,-500.0,0.00016438,2]
[400450224,1767569432616,-500.0,0.00016438,2]
[400450225,1767569432626,-500.0,0.00016438,2]
[400450226,1767569432635,-500.0,0.00016438,2]
[400450227,1767569432645,-8182.96,0.00016438,2]
[400450228,1767569432654,-603.12603829,0.00016438,2]
[400450229,1767569432664,-164.72,0.0001644,2]
[400450230,1767569432674,-164.72,0.0001644,2]
[400450231,1767569432684,-695.03832556,0.00016468,2]
[400450232,1767569432693,-1500.0,0.00016468,2]
[400450233,1767569432703,-1500.0,0.00016468,2]
[400450234,1767569432712,-1500.0,0.00016468,2]
[400450236,1767569432721,-1500.0,0.00016468,2]
[400450237,1767569432731,-663.91462898,0.00016468,2]
[400450238,1767569432740,-1000.0,0.00016468,2]
[400450239,1767569432749,-458.63,0.00016504,2]
[400450240,1767569432759,-3550.67997991,0.00016514,2]
[400450241,1767569432768,-503.77025237,0.00016521,2]
[400450242,1767569432777,-1000.0,0.00016521,2]
[400450243,1767569432786,-1000.0,0.00016521,2]